Workbook

Sheet Титульный лист
A1: МЕНЮ
A3: (3-х разового питания на 10 дней)
E4: на осенне-зимний период
A6: для обучающихся 1-9-х классов по категории от 7-15 лет общеобразовательных организаций Тверской
A7: области в соответствии требованиям СанПиН 2.4.5.2409-08 «Санитарно-эпидемиологические
A8: требования к организации питания обучающихся в общеобразовательных учреждениях, учреждениях
A9: начального и среднего профессионального образования» и МР 2.4.5.0107-15 «Организация питания
A10: детей дошкольного и школьного возраста в организованных коллективах».
A14: Сборник технических нормативов-Сборник рецептур но продукцию для обучающихся во всех образовательных
A15: учреждениях/Под ред, М.П.Могильного и В.А.Тутельяна,-М,:Де/1и плюс, 2015,-544с
A16: В соответствии нормативов Учреждения Российской Академии Медицинских Наук Научно-исследовательский
A17: институт питания РАМН, 2011
A19: Разработано государственным бюджетным профессиональным образовательным учреждением «Тверской колледж
A20: сервиса и туризма».

Sheet 1 день
A1: День: | B1: понедельник
A2: Неделя: | B2: первая
A3: Сезон: | B3: осенне-зимний
A4: Возрастная категория: | B4: 12 лет и старше
A5: № рец. | B5: Приём пищи, наименование блюда | C5: Масса порции | D5: Пищевые вещества (г.) | G5: Энергетическая ценность (ккал) | H5: Витамины (мг.) | L5: Минеральные вещества (мг.)
D6: Б | E6: Ж | F6: У | H6: В1 | I6: С | J6: А | K6: Е | L6: Са | M6: Р | N6: Мg | O6: Fe
A7: Завтрак
A8: 173 | B8: Каша молочная овсяная, вязкая со сливочным маслом | C8: 260 | D8: 10.20 | E8: 13.44 | F8: 44.50 | G8: 330.00 | H8: 0.25 | I8: 0.63 | L8: 171.67 | N8: 84.30 | O8: 2.08
A9: 3 | B9: Бутерброд с маслом сливочным и сыром | C9: 80 | D9: 6.53 | E9: 11.91 | F9: 12.31 | G9: 170.50 | H9: 0.06 | I9: 0.40 | J9: 0.11 | K9: 0.85 | L9: 259.90 | M9: 162.60 | N9: 21.95 | O9: 0.62
B10: Хлеб пшеничный | C10: 40
B11: Масло сливочное | C11: 20
B12: Сыр | C12: 20
A13: 382 | B13: Какао с молоком | C13: 200 | D13: =20.39/10*2 -> 4.08 | E13: =17.72/10*2 -> 3.54 | F13: =87.89/10*2 -> 17.58 | G13: =593/10*2 -> 118.60 | I13: =7.94/10*2 -> 1.59 | L13: =761.1/10*2 -> 152.22 | N13: 21.34 | O13: 0.48
A15: ИТОГО: | C15: 540 | D15: 20.81 | E15: 28.89 | F15: 74.39 | G15: 619.10 | H15: 0.31 | I15: 2.62 | J15: 0.11 | K15: 0.85 | L15: 583.79 | M15: 162.60 | N15: 127.59 | O15: 3.18
A16: Обед
A18: 140 | B18: Суп картофельный с макаронными изделиями | C18: 250 | D18: 6.70 | E18: 3.56 | F18: 12.46 | G18: 128.04 | H18: 0.09 | I18: 2.00 | J18: 0.05 | K18: 1.81 | L18: 88.36 | N18: 21.60 | O18: 2.13
A19: 309 | B19: Макароные изделия отварные с маслом | C19: 180 | D19: 1.50 | E19: 2.96 | F19: 21.63 | G19: 193.68 | L19: 5.63 | N19: 1.61 | O19: 0.51
A20: 17 | B20: Котлеты из курицы из полуфабрикатов высокой степени готовности (2 шт.по 80 г.) | C20: 160 | D20: 27.84 | E20: 20.16 | F20: 1.60 | G20: 473.60 | L20: 144.60 | N20: 20.80 | O20: 1.60
A21: 342 | B21: Компот из свежих яблок | C21: 200 | D21: 0.16 | E21: 0.16 | F21: 27.88 | G21: 114.60 | H21: 0.06 | I21: 0.90 | K21: 0.08 | L21: 14.18 | M21: 4.40 | N21: 5.14 | O21: 0.95
A22: 701 | B22: Хлеб ржано-пшеничный | C22: 40 | D22: 3.80 | E22: 0.45 | F22: 23.35 | G22: 114.60 | H22: 0.05 | L22: 9.30 | O22: 0.62
A23: 701 | B23: Хлеб пшеничный | C23: 40 | D23: 3.04 | E23: 0.36 | F23: 18.68 | G23: 85.44 | H23: 0.05 | L23: 9.30 | O23: 0.62
A24: ИТОГО: | C24: 870 | D24: 43.04 | E24: 27.65 | F24: 105.60 | G24: 1,109.96 | H24: 0.50 | I24: 2.90 | J24: 0.05 | K24: 1.89 | L24: 271.37 | M24: 4.40 | N24: 49.15 | O24: 6.43
A29: ИТОГО | C29: 1410 | D29: 63.85 | E29: 56.54 | F29: 179.99 | G29: 1,729.06 | H29: 0.81 | I29: 5.52 | J29: 0.16 | K29: 2.74 | L29: 855.16 | M29: 167.00 | N29: 176.74 | O29: 9.61
A30: ИТОГО за день:
B32: Средние показания на день | F32: пищевые вещества | I32: энергет. ценн. ккал | K32: День: | L32: понедельник
F33: Б | G33: Ж | H33: У | K33: Неделя: | L33: первая
B34: Потребность по СаН ПиН (60-70%) | F34: 46,2-53,9 | G34: 47,4-55,3 | H34: 201-234,5 | I34: 1410-1645 | K34: Сезон: | L34: осенне-зимний
B35: По меню | F35: =D30 -> 0.00 | G35: =E30 -> 0.00 | H35: =F30 -> 0.00 | I35: =G30 -> 0.00 | K35: Возрастная категория: | L35: 7-11/12 лет и старше
B37: Рекомендуемые среднесуточные наборы пищевых продуктов, в том числе используемые для приготовления блюд и напитков, для обучающихся общеобразовательных учреждений
B38: Наименование продуктов | C38: Количество продуктов в зависимости от возраста обучающихся | G38: Средняя за 10 дней
C39: в г, мл, брутто | E39: в г, мл, нетто | G39: в г, мл, брутто | H39: в г, мл, нетто
C40: 7-11 лет | E40: 7-11 лет | G40: 7-11 лет | H40: 7-11 лет
B41: Хлеб ржаной (ржано-пшеничный) | C41: 80 | E41: 80 | G41: =40 -> 40.00 | H41: 40.00
B42: Хлеб пшеничный | C42: 150 | E42: 150 | G42: =C10+C23 -> 80.00 | H42: =70 -> 70.00
B43: Мука пшеничная | C43: 15 | E43: 15 | G43: =2 -> 2.00 | H43: 2.00
B44: Крупы, бобовые | C44: 45 | E44: 45 | G44: =44+5 -> 49.00 | H44: 49.00
B45: Макаронные изделия | C45: 15 | E45: 15 | G45: 52.50 | H45: 52.50
B46: Картофель | C46: 250 <*> | E46: 188 | G46: 100.00 | H46: 75.00
B47: Овощи свежие, зелень | C47: 350 | E47: 280 <**> | G47: =16.75+12.5+6+43.8+12+12+3+2.5+12.5 -> 121.05 | H47: =2+2+10+10+10.75+10+15+10 -> 69.75
B48: Фрукты (плоды) свежие | C48: 200 | E48: 185 <**> | G48: =100+35.7 -> 135.70 | H48: =100+25 -> 125.00
B49: Фрукты (плоды) сухие, в т.ч. шиповник | C49: 15 | E49: 15 | G49: 20.00 | H49: 37.00
B50: Соки плодоовощные, напитки витаминизированные, в т.ч. инстантные | C50: 200 | E50: 200
B51: Мясо жилованное (мясо на кости) 1 кат. | C51: 77 (95) | E51: 70 | G51: =150 -> 150.00 | H51: =81+25 -> 106.00
B52: Цыплята 1 категории потрошеные (куры 1 кат. п/п) | C52: 40 (51) | E52: 35
B53: Рыба-филе | C53: 60 | E53: 58
B54: Колбасные изделия | C54: 15 | E54: 14.7
B55: Молоко (массовая доля жира 2,5%, 3,2%) | C55: 300 | E55: 300 | G55: =211+100+100 -> 411.00 | H55: =200+100+100 -> 400.00
B56: Кисломолочные продукты (массовая доля жира 2,5%, 3,2%) | C56: 150 | E56: 150
B57: Творог (массовая доля жира не более 9%) | C57: 50 | E57: 50
B58: Сыр | C58: 10 | E58: 9.8 | G58: 16.00 | H58: 15.00
B59: Сметана (массовая доля жира не более 15%) | C59: 10 | E59: 10
B60: Масло сливочное | C60: 30 | E60: 30 | G60: =4.5+5+10 -> 19.50 | H60: 19.50
B61: Масло растительное | C61: 15 | E61: 15 | G61: 10.00 | H61: 10.00
B62: Яйцо диетическое | C62: 1 шт. | E62: 40 | G62: =2.1 -> 2.10 | H62: 2.10
B63: Сахар <***> | C63: 40 | E63: 40 | G63: =20+6 -> 26.00 | H63: 26.00
B64: Кондитерские изделия | C64: 10 | E64: 10 | G64: 20.00 | H64: 20.00
B65: Чай | C65: 0.4 | E65: 0.4
B66: Какао | C66: 1.2 | E66: 1.2 | G66: 4.00 | H66: 4.00
B67: Дрожжи хлебопекарные | C67: 1 | E67: 1
B68: Соль | C68: 5 | E68: 5 | G68: 5.00 | H68: 5.00

Sheet 2 день
A1: День: | B1: вторник
A2: Неделя: | B2: первая
A3: Сезон: | B3: осенне-зимний
A4: Возрастная категория: | B4: 12 лет и старше
A5: № рец. | B5: Приём пищи, наименование блюда | C5: Масса порции | D5: Пищевые вещества (г.) | G5: Энергетическая ценность (ккал) | H5: Витамины (мг.) | L5: Минеральные вещества (мг.)
D6: Б | E6: Ж | F6: У | H6: В1 | I6: С | J6: А | K6: Е | L6: Са | M6: Р | N6: Мg | O6: Fe
A7: Завтрак
A8: 204 | B8: Макаронные изделия отварные со сливочным маслом и сыром | C8: 260 | D8: 12.70 | E8: 11.30 | F8: 48.10 | G8: 347.00 | H8: 0.10 | I8: 0.10 | L8: 240.20 | M8: 176.30 | N8: 18.70 | O8: 1.50
A10: 8 | B10: Бутерброд с п/к колбасой | C10: 60 | D10: 8.61 | E10: 15.67 | F10: 17.7 | G10: 240.8 | H10: 0.05 | K10: 0.02 | L10: 9.1 | M10: 73.2 | N10: 15.9 | O10: 0.99
B11: Хлеб пшеничный | C11: 40
B12: Колбаса п/к | C12: 20
A14: 376 | B14: Чай с сахаром | C14: 200/15 | D14: 0.07 | E14: 0.02 | F14: 15.00 | G14: 60.00 | H14: =0.01/5 -> 0.00 | I14: 0.03 | J14: =0 -> 0 | K14: =0 -> 0 | L14: 11.01 | N14: 1.40 | O14: 0.28
A15: ИТОГО: | C15: 535 | D15: =SUM(D8:D14) -> 21.38 | E15: =SUM(E8:E14) -> 26.99 | F15: 80.80 | G15: =SUM(G8:G14) -> 647.80 | H15: 0.15 | I15: 0.13 | K15: 0.02 | L15: 260.31 | M15: 249.5 | N15: 36.00 | O15: 2.77
A16: Обед
A18: 82 | B18: Борщ с капустой и картофелем | C18: 250 | D18: =(7.21/4)+0.8 -> 2.60 | E18: =(19.68/4)+0.2 -> 5.12 | F18: 10.99 | G18: =(415/4)+5+30 -> 138.75 | I18: =42.7/4 -> 10.68 | L18: =(198.9/4)+2 -> 51.73 | N18: =104.5/4 -> 26.13 | O18: =4.9/4 -> 1.23
A19: 234 | B19: Котлеты рыбные из полуфабрикатов высокой степени готовности | C19: 100 | D19: 13.98 | E19: 11.42 | F19: 19.94 | G19: 240.00 | I19: 1.76 | L19: 81.84 | N19: 55.12 | O19: 1.54
A20: 312 | B20: Пюре картофельное | C20: 180/10 | D20: 3.07 | E20: 25.18 | F20: 20.44 | G20: 137.25 | H20: 0.14 | I20: 18.16 | J20: 0.18 | K20: 0.44 | L20: 113.59 | M20: 127.88 | N20: 38.36 | O20: 1.44
A21: 389 | B21: Сок фруктовый (абрикосовый) | C21: 200 | D21: =1 -> 1 | E21: 0 | F21: 20.2 | G21: 84.8 | I21: =30/5 -> 6 | L21: =70/5 -> 14 | N21: =40/5 -> 8 | O21: =14/5 -> 2.8
A22: 701 | B22: Хлеб ржано-пшеничный | C22: 40 | D22: 3.80 | E22: 0.45 | F22: 23.35 | G22: 114.60 | H22: 0.05 | L22: 9.30 | O22: 0.62
A23: 701 | B23: Хлеб пшеничный | C23: 40 | D23: 3.04 | E23: 0.36 | F23: 18.68 | G23: 85.44 | H23: 0.05 | L23: 9.30 | O23: 0.62
A24: ИТОГО: | C24: 820 | D24: =SUM(D17:D23) -> 27.49 | E24: =SUM(E17:E23) -> 42.53 | F24: 194.40 | G24: 804.04 | H24: 0.24 | I24: 36.60 | J24: 0.18 | K24: 0.44 | L24: 279.76 | M24: 127.88 | N24: 127.61 | O24: 8.25
A29: ИТОГО: | C29: 1315 | D29: 48.87 | E29: 69.52 | F29: 194.40 | G29: 1,451.84 | H29: 0.39 | I29: 36.73 | J29: 0.18 | K29: 0.44 | L29: 540.07 | M29: 337.38 | N29: 163.61 | O29: 11.02
A30: ИТОГО за день:
B32: Средние показания на день | F32: пищевые вещества | I32: энергет. ценн. ккал
F33: Б | G33: Ж | H33: У
B34: Потребность по СаН ПиН (60-70%) | F34: 46,2-53,9 | G34: 47,4-55,3 | H34: 201-234,5 | I34: 1410-1645
B35: По меню | F35: =D30 -> 0.00 | G35: =E30 -> 0.00 | H35: =F30 -> 0.00 | I35: =G30 -> 0.00
B37: Рекомендуемые среднесуточные наборы пищевых продуктов, в том числе используемые для приготовления блюд и напитков, для обучающихся общеобразовательных учреждений | J37: День: | K37: вторник
B38: Наименование продуктов | C38: Количество продуктов в зависимости от возраста обучающихся | G38: Средняя за 10 дней | J38: Неделя: | K38: первая
C39: в г, мл, брутто | E39: в г, мл, нетто | G39: в г, мл, брутто | H39: в г, мл, нетто | J39: Сезон: | K39: осенне-зимний
C40: 7-11 лет | E40: 7-11 лет | G40: 7-11 лет | H40: 7-11 лет | J40: Возрастная категория: | K40: 7-11/12 лет и старше
B41: Хлеб ржаной (ржано-пшеничный) | C41: 80 | E41: 80 | G41: 40.00 | H41: 40.00
B42: Хлеб пшеничный | C42: 150 | E42: 150 | G42: 100.00 | H42: 100.00
B43: Мука пшеничная | C43: 15 | E43: 15 | G43: =78+11.5 -> 89.50 | H43: =78+11.5 -> 89.50
B44: Крупы, бобовые | C44: 45 | E44: 45
B45: Макаронные изделия | C45: 15 | E45: 15
B46: Картофель | C46: 250 <*> | E46: 188 | G46: =171+27+28.9 -> 226.90 | H46: =20+21+129 -> 170.00
B47: Овощи свежие, зелень | C47: 350 | E47: 280 <**> | G47: =50+25+12.5+3.25+12+7.5+19.1+12.6+18.8+21.4+18.8+23+4+2+10+10 -> 249.95 | H47: =40+20+10+2.5+10+7.5+15+10+15+15+15+18+3+1+8+10 -> 200.00
B48: Фрукты (плоды) свежие | C48: 200 | E48: 185 <**> | G48: =100+21+8 -> 129.00 | H48: 129.00
B49: Фрукты (плоды) сухие, в т.ч. шиповник | C49: 15 | E49: 15
B50: Соки плодоовощные, напитки витаминизированные, в т.ч. инстантные | C50: 200 | E50: 200 | G50: 200.00 | H50: 200.00
B51: Мясо жилованное (мясо на кости) 1 кат. | C51: 77 (95) | E51: 70 | G51: 40.00 | H51: 25.00
B52: Цыплята 1 категории потрошеные (куры 1 кат. п/п) | C52: 40 (51) | E52: 35
B53: Рыба-филе | C53: 60 | E53: 58 | G53: 123.00 | H53: 61.00
B54: Колбасные изделия | C54: 15 | E54: 14.7
B55: Молоко (массовая доля жира 2,5%, 3,2%) | C55: 300 | E55: 300 | G55: =78+24 -> 102.00 | H55: =78+22.5 -> 100.50
B56: Кисломолочные продукты (массовая доля жира 2,5%, 3,2%) | C56: 150 | E56: 150 | G56: 207.00 | H56: 200.00
B57: Творог (массовая доля жира не более 9%) | C57: 50 | E57: 50 | G57: =83.7+30 -> 113.70 | H57: =82+30 -> 112.00
B58: Сыр | C58: 10 | E58: 9.8
B59: Сметана (массовая доля жира не более 15%) | C59: 10 | E59: 10
B60: Масло сливочное | C60: 30 | E60: 30 | G60: =10+5.25 -> 15.25 | H60: 15.25
B61: Масло растительное | C61: 15 | E61: 15 | G61: =9+5+10 -> 24.00 | H61: 24.00
B62: Яйцо диетическое | C62: 1 шт. | E62: 40 | G62: =3.9+6 -> 9.90 | H62: =3.9+6 -> 9.90
B63: Сахар <***> | C63: 40 | E63: 40 | G63: =2.75+6+2+1 -> 11.75 | H63: 11.75
B64: Кондитерские изделия | C64: 10 | E64: 10 | G64: 15.00 | H64: 15.00
B65: Чай | C65: 0.4 | E65: 0.4 | G65: 0.50 | H65: 0.50
B66: Какао | C66: 1.2 | E66: 1.2
B67: Дрожжи хлебопекарные | C67: 1 | E67: 1 | G67: 2.25 | H67: 2.25
B68: Соль | C68: 5 | E68: 5 | G68: =1.5+0.8+1 -> 3.30 | H68: 3.30

Sheet 3 день
A1: День: | B1: среда
A2: Неделя: | B2: первая
A3: Сезон: | B3: осенне-зимний
A4: Возрастная категория: | B4: 12 лет и старше
A5: № рец. | B5: Приём пищи, наименование блюда | C5: Масса порции | D5: Пищевые вещества (г.) | G5: Энергетическая ценность (ккал) | H5: Витамины (мг.) | L5: Минеральные вещества (мг.)
D6: Б | E6: Ж | F6: У | H6: В1 | I6: С | J6: А | K6: Е | L6: Са | M6: Р | N6: Мg | O6: Fe
A7: Завтрак
A8: 182 | B8: Каша жидкая молочная из риса с маслом сливочным | C8: 250 | D8: 5.10 | E8: 10.22 | F8: 33.42 | G8: 251.00 | H8: 0.06 | I8: 1.17 | J8: 58.00 | K8: 0.21 | L8: 130.09 | N8: 30.12 | O8: 0.47
A9: 8 | B9: Бутерброд с п/к колбасой | C9: 60 | D9: 8.61 | E9: 15.67 | F9: 17.7 | G9: 240.8 | H9: 0.05 | K9: 0.02 | L9: 9.1 | M9: 73.2 | N9: 15.9 | O9: 0.99
B10: Хлеб пшеничный | C10: 40
B11: П/к колбаса | C11: 20
A13: 379 | B13: Напиток кофейный с молоком | C13: 200 | D13: =15.83/5 -> 3.17 | E13: =13.39/5 -> 2.68 | F13: =79.73/5 -> 15.95 | G13: =503/5 -> 100.60 | I13: =6.5/5 -> 1.30 | L13: =628.9/5 -> 125.78 | N13: =70/5 -> 14.00 | O13: =0.67/5 -> 0.13
A14: ИТОГО: | C14: 510 | D14: =SUM(D8:D13) -> 16.88 | E14: =SUM(E8:E13) -> 28.57 | F14: =SUM(F8:F13) -> 67.07 | G14: =SUM(G8:G13) -> 592.40 | H14: 0.11 | I14: 2.47 | J14: 58 | K14: 0.23 | L14: 264.97 | M14: 73.2 | N14: 60.02 | O14: 1.59
A15: Обед
A17: 138 | B17: Суп картофельный с крупой "Крестьянский" | C17: 250 | D17: 2.80 | E17: 3.00 | F17: 20.50 | G17: 121.00 | I17: 5.60 | L17: 105.40 | N17: 18.00 | O17: 0.70
A18: 17 | B18: Котлеты из курицы из полуфабрикатов высокой степени готовности (2 шт.по 80 г) | C18: 160 | D18: 27.84 | E18: 20.16 | F18: 1.60 | G18: 473.60 | L18: 144.60 | N18: =10.4*2 -> 20.80 | O18: 1.60
A19: 304 | B19: Рис отварной | C19: 180 | D19: 3.65 | E19: 11.69 | F19: 36.68 | G19: 209.70 | L19: 1.37 | N19: 16.34 | O19: 0.53
A20: 389 | B20: Сок фруктовый (яблочный) | C20: 200 | D20: =1 -> 1 | E20: 0 | F20: =101/5 -> 20.2 | G20: =424/5 -> 84.8 | I20: =30/5 -> 6 | L20: =70/5 -> 14 | N20: =40/5 -> 8 | O20: =14/5 -> 2.8
A21: 701 | B21: Хлеб ржано-пшеничный | C21: 40 | D21: 3.80 | E21: 0.45 | F21: 23.35 | G21: 114.60 | H21: 0.05 | L21: 9.30 | O21: 0.62
A22: 701 | B22: Хлеб пшеничный | C22: 40 | D22: 3.04 | E22: 0.36 | F22: 18.68 | G22: 85.44 | H22: 0.05 | L22: 9.30 | O22: 0.62
A23: ИТОГО: | C23: 870 | D23: =SUM(D16:D22) -> 42.13 | E23: =SUM(E16:E22) -> 35.66 | F23: 121.01 | G23: 1,089.14 | H23: 0.1 | I23: 11.6 | L23: 188.97 | N23: 63.14 | O23: 8.46
A28: ИТОГО: | D28: =SUM(D25:D27) -> 0 | E28: =SUM(E25:E27) -> 0 | F28: =SUM(F25:F27) -> 0 | G28: =SUM(G25:G27) -> 0
A29: ИТОГО за день: | C29: 1380 | D29: =SUM(D8:D13)+SUM(D16:D22)+SUM(D25:D27) -> 59.01 | E29: =SUM(E8:E13)+SUM(E16:E22)+SUM(E25:E27) -> 64.23 | F29: 188.08 | G29: 1,681.54 | H29: 0.21 | I29: 14.07 | J29: 58 | K29: 0.23 | L29: 453.94 | M29: 73.2 | N29: 123.16 | O29: 28.78
B31: Средние показания на день | F31: пищевые вещества | I31: энергет. ценн. ккал
F32: Б | G32: Ж | H32: У
B33: Потребность по СаН ПиН (60-70%) | F33: 46,2-53,9 | G33: 47,4-55,3 | H33: 201-234,5 | I33: 1410-1645
B34: По меню | F34: =D29 -> 59.01 | G34: =E29 -> 64.23 | H34: =F29 -> 188.08 | I34: =G29 -> 1681.54
B36: Рекомендуемые среднесуточные наборы пищевых продуктов, в том числе используемые для приготовления блюд и напитков, для обучающихся общеобразовательных учреждений
B37: Наименование продуктов | C37: Количество продуктов в зависимости от возраста обучающихся | G37: Средняя за 10 дней | J37: День: | K37: среда
C38: в г, мл, брутто | E38: в г, мл, нетто | G38: в г, мл, брутто | H38: в г, мл, нетто | J38: Неделя: | K38: первая
C39: 7-11 лет | E39: 7-11 лет | G39: 7-11 лет | H39: 7-11 лет | J39: Сезон: | K39: осенне-зимний
B40: Хлеб ржаной (ржано-пшеничный) | C40: 80 | E40: 80 | G40: 40.00 | H40: 40.00 | J40: Возрастная категория: | K40: 7-11/12 лет и старше
B41: Хлеб пшеничный | C41: 150 | E41: 150 | G41: =50+8+5+40 -> 103.00 | H41: 103.00
B42: Мука пшеничная | C42: 15 | E42: 15 | G42: =1+0.6+14 -> 15.60 | H42: 15.60
B43: Крупы, бобовые | C43: 45 | E43: 45
B44: Макаронные изделия | C44: 15 | E44: 15 | G44: 10.00 | H44: 10.00
B45: Картофель | C45: 250 <*> | E45: 188 | G45: 53.40 | H45: 40.00
B46: Овощи свежие, зелень | C46: 350 | E46: 280 <**> | G46: =10+9.6+2+2+142+3+5+6+92.6 -> 272.20 | H46: =8+8+2+114+2.5+4+6+74 -> 218.50
B47: Фрукты (плоды) свежие | C47: 200 | E47: 185 <**> | G47: =100+14.3+20.7 -> 135.00 | H47: =100+10+18 -> 128.00
B48: Фрукты (плоды) сухие, в т.ч. шиповник | C48: 15 | E48: 15 | G48: =5.6 -> 5.60 | H48: 10.00
B49: Соки плодоовощные, напитки витаминизированные, в т.ч. инстантные | C49: 200 | E49: 200 | G49: 200.00 | H49: 200.00
B50: Мясо жилованное (мясо на кости) 1 кат. | C50: 77 (95) | E50: 70
B51: Цыплята 1 категории потрошеные (куры 1 кат. п/п) | C51: 40 (51) | E51: 35 | G51: =85+40 -> 125.00 | H51: =35+25 -> 60.00
B52: Рыба-филе | C52: 60 | E52: 58
B53: Колбасные изделия | C53: 15 | E53: 14.7
B54: Молоко (массовая доля жира 2,5%, 3,2%) | C54: 300 | E54: 300 | G54: =100+50+12 -> 162.00 | H54: 162.00
B55: Кисломолочные продукты (массовая доля жира 2,5%, 3,2%) | C55: 150 | E55: 150 | G55: 206.00 | H55: 200.00
B56: Творог (массовая доля жира не более 9%) | C56: 50 | E56: 50
B57: Сыр | C57: 10 | E57: 9.8
B58: Сметана (массовая доля жира не более 15%) | C58: 10 | E58: 10
B59: Масло сливочное | C59: 30 | E59: 30 | G59: =10+4+10+2+5+0.6 -> 31.60 | H59: =31.6 -> 31.60
B60: Масло растительное | C60: 15 | E60: 15 | G60: =2+4+3+5+0.15 -> 14.15 | H60: 14.15
B61: Яйцо диетическое | C61: 1 шт. | E61: 40 | G61: =80+0.7+0.7 -> 81.40 | H61: 81.40
B62: Сахар <***> | C62: 40 | E62: 40 | G62: =1+20+3+2+5.4+0.75 -> 32.15 | H62: 32.15
B63: Кондитерские изделия | C63: 10 | E63: 10
B64: Чай | C64: 0.4 | E64: 0.4
B65: Какао | C65: 1.2 | E65: 1.2
B66: Дрожжи хлебопекарные | C66: 1 | E66: 1 | G66: 0.10 | H66: 0.10
B67: Соль | C67: 5 | E67: 5 | G67: 3.10 | H67: 3.10

Sheet 4 день
A1: День: | B1: четверг
A2: Неделя: | B2: первая
A3: Сезон: | B3: осенне-зимний
A4: Возрастная категория: | B4: 12 лет и старше
A5: № рец. | B5: Приём пищи, наименование блюда | C5: Масса порции | D5: Пищевые вещества (г.) | G5: Энергетическая ценность (ккал) | H5: Витамины (мг.) | L5: Минеральные вещества (мг.)
D6: Б | E6: Ж | F6: У | H6: В1 | I6: С | J6: А | K6: Е | L6: Са | M6: Р | N6: Мg | O6: Fe
A7: Завтрак
A8: 182 | B8: Каша пшенная жидкая молочная с маслом сливочным | C8: 250 | D8: 7.51 | E8: 11.72 | F8: 37.05 | G8: 285.00 | I8: 1.17 | L8: 138.10 | N8: 47.60 | O8: 1.23
A9: 3 | B9: Бутерброд с маслом сливочным и сыром (1 шт.) | C9: 40/20/20 | D9: 6.53 | E9: 11.91 | F9: 12.31 | G9: 170.50 | H9: 0.06 | I9: 0.40 | J9: 0.11 | K9: 0.85 | L9: 259.90 | M9: 162.60 | N9: 21.95 | O9: 0.62
B10: Хлеб пшеничный | C10: 40
B11: Масло сливочное | C11: 20
B12: Сыр российский | C12: 20
A13: 382 | B13: Какао с молоком | C13: 200 | D13: =20.39/5 -> 4.08 | E13: =17.72/5 -> 3.54 | F13: =87.89/5 -> 17.58 | G13: =593/5 -> 118.60 | I13: =7.94/5 -> 1.59 | L13: =761.1/5 -> 152.22 | N13: =106.7/5 -> 21.34 | O13: =2.39/5 -> 0.48
A15: ИТОГО: | C15: 530 | D15: =SUM(D8:D14) -> 18.12 | E15: =SUM(E8:E14) -> 27.17 | F15: =SUM(F8:F14) -> 66.94 | G15: =SUM(G8:G14) -> 574.10 | H15: 0.06 | I15: 3.16 | J15: 0.11 | K15: 0.85 | L15: 550.22 | M15: 162.60 | N15: 90.89 | O15: 2.33
A16: Обед
A18: 88 | B18: Щи из свежей капусты с картофелем | C18: 250 | D18: =(7.06/4)+0.8 -> 2.57 | E18: =(19.8/4)+0.2 -> 5.15 | F18: =31.61/4 -> 7.90 | G18: =(359/4)+5+30 -> 124.75 | I18: =63.1/4 -> 15.78 | L18: =(197/4)+2 -> 51.25 | N18: =88.5/4 -> 22.13 | O18: =3.3/4 -> 0.83
A19: 302 | B19: Каша рассыпчатая гречневая | C19: 180/5 | D19: 14.00 | E19: 8.70 | F19: 57.90 | G19: 372.00 | H19: 0.05 | K19: 1.71 | L19: 21.57 | N19: 204.08 | O19: 6.99
A20: 413 | B20: Сосиски отварные | C20: 100 | D20: 8.88 | E20: 19.12 | F20: 1.28 | G20: 212.80 | L20: 10.83 | O20: 0.60
A21: 389 | B21: Сок фруктовый (грушевый) | C21: 200 | D21: =1 -> 1 | E21: 0 | F21: =101/5 -> 20.2 | G21: =424/5 -> 84.8 | I21: =30/5 -> 6 | L21: =70/5 -> 14 | N21: =40/5 -> 8 | O21: =14/5 -> 2.8
A22: 701 | B22: Хлеб ржано-пшеничный | C22: 40 | D22: 3.80 | E22: 0.45 | F22: 23.35 | G22: 114.60 | H22: 0.05 | L22: 9.30 | O22: 0.62
A23: 701 | B23: Хлеб пшеничный | C23: 40 | D23: 3.04 | E23: 0.36 | F23: 18.68 | G23: 85.44 | H23: 0.05 | L23: 9.30 | O23: 0.62
A24: ИТОГО: | C24: 815 | D24: 33.29 | E24: =SUM(E17:E23) -> 33.78 | F24: =SUM(F17:F23) -> 129.31 | G24: =SUM(G17:G23) -> 994.39 | H24: 0.15 | I24: 21.78 | K24: 1.71 | L24: 116.25 | N24: 234.21 | O24: 12.46
A29: ИТОГО | D29: =SUM(D26:D28) -> 0 | E29: =SUM(E26:E28) -> 0 | F29: =SUM(F26:F28) -> 0 | G29: =SUM(G26:G28) -> 0
A30: ИТОГО за день: | C30: 1345 | D30: 51.41 | E30: =SUM(E8:E14)+SUM(E17:E23)+SUM(E26:E28) -> 60.95 | F30: =SUM(F8:F14)+SUM(F17:F23)+SUM(F26:F28) -> 196.25 | G30: 1,568.49 | H30: 0.21 | I30: 24.94 | J30: 0.11 | K30: 0.85 | L30: 666.47 | M30: 162.60 | N30: 325.10 | O30: 14.79
B32: Средние показания на день | F32: пищевые вещества | I32: энергет. ценн. ккал
F33: Б | G33: Ж | H33: У
B34: Потребность по СаН ПиН (60-70%) | F34: 46,2-53,9 | G34: 47,4-55,3 | H34: 201-234,5 | I34: 1410-1645
B35: По меню | F35: =D30 -> 51.41 | G35: =E30 -> 60.95 | H35: =F30 -> 196.25 | I35: =G30 -> 1568.49
B37: Рекомендуемые среднесуточные наборы пищевых продуктов, в том числе используемые для приготовления блюд и напитков, для обучающихся общеобразовательных учреждений
B38: Наименование продуктов | C38: Количество продуктов в зависимости от возраста обучающихся | G38: Средняя за 10 дней | K38: День: | L38: четверг
C39: в г, мл, брутто | E39: в г, мл, нетто | G39: в г, мл, брутто | H39: в г, мл, нетто | K39: Неделя: | L39: первая
C40: 7-11 лет | E40: 7-11 лет | G40: 7-11 лет | H40: 7-11 лет | K40: Сезон: | L40: осенне-зимний
B41: Хлеб ржаной (ржано-пшеничный) | C41: 80 | E41: 80 | G41: 40.00 | H41: 40.00 | K41: Возрастная категория: | L41: 7-11/12 лет и старше
B42: Хлеб пшеничный | C42: 150 | E42: 150 | G42: =40+30+8 -> 78.00 | H42: 78.00
B43: Мука пшеничная | C43: 15 | E43: 15 | G43: =4+3.75+35.56+1.48 -> 44.79 | H43: 44.79
B44: Крупы, бобовые | C44: 45 | E44: 45 | G44: =40+35 -> 75.00 | H44: 75.00
B45: Макаронные изделия | C45: 15 | E45: 15
B46: Картофель | C46: 250 <*> | E46: 188 | G46: 40.00 | H46: 30.00
B47: Овощи свежие, зелень | C47: 350 | E47: 280 <**> | G47: =85.6+24+5+63+12.5+3.25+12+2.5 -> 207.85 | H47: =67+20+50+10+2.5+10+2.5 -> 162.00
B48: Фрукты (плоды) свежие | C48: 200 | E48: 185 <**> | G48: =35.7+100 -> 135.70 | H48: 135.70
B49: Фрукты (плоды) сухие, в т.ч. шиповник | C49: 15 | E49: 15
B50: Соки плодоовощные, напитки витаминизированные, в т.ч. инстантные | C50: 200 | E50: 200 | G50: 200.00 | H50: 200.00
B51: Мясо жилованное (мясо на кости) 1 кат. | C51: 77 (95) | E51: 70 | G51: =52+40 -> 92.00 | H51: =38+25 -> 63.00
B52: Цыплята 1 категории потрошеные (куры 1 кат. п/п) | C52: 40 (51) | E52: 35
B53: Рыба-филе | C53: 60 | E53: 58
B54: Колбасные изделия | C54: 15 | E54: 14.7
B55: Молоко (массовая доля жира 2,5%, 3,2%) | C55: 300 | E55: 300 | G55: =100+211+100 -> 411.00 | H55: =400 -> 400.00
B56: Кисломолочные продукты (массовая доля жира 2,5%, 3,2%) | C56: 150 | E56: 150
B57: Творог (массовая доля жира не более 9%) | C57: 50 | E57: 50
B58: Сыр | C58: 10 | E58: 9.8 | G58: 16.00 | H58: 15.00
B59: Сметана (массовая доля жира не более 15%) | C59: 10 | E59: 10 | G59: 12.50
B60: Масло сливочное | C60: 30 | E60: 30 | G60: =10+10+1.1+1.5+1.3+5 -> 28.90 | H60: 28.90
B61: Масло растительное | C61: 15 | E61: 15 | G61: =6+3+3+5 -> 17.00 | H61: 17.00
B62: Яйцо диетическое | C62: 1 шт. | E62: 40
B63: Сахар <***> | C63: 40 | E63: 40 | G63: =20+6+3+3.7+1 -> 33.70 | H63: 33.70
B64: Кондитерские изделия | C64: 10 | E64: 10
B65: Чай | C65: 0.4 | E65: 0.4
B66: Какао | C66: 1.2 | E66: 1.2
B67: Дрожжи хлебопекарные | C67: 1 | E67: 1 | G67: 0.56 | H67: 0.56
B68: Соль | C68: 5 | E68: 5 | G68: 3.56 | H68: 3.56

Sheet 5 день
A1: День: | B1: пятница
A2: Неделя: | B2: первая
A3: Сезон: | B3: осенне-зимний
A4: Возрастная категория: | B4: 12 лет и старше
A5: № рец. | B5: Приём пищи, наименование блюда | C5: Масса порции | D5: Пищевые вещества (г.) | G5: Энергетическая ценность (ккал) | H5: Витамины (мг.) | L5: Минеральные вещества (мг.)
D6: Б | E6: Ж | F6: У | H6: В1 | I6: С | J6: А | K6: Е | L6: Са | M6: Р | N6: Мg | O6: Fe
A7: Завтрак
A9: 302 | B9: Каша рассыпчатая гречневая | C9: 250 | D9: 14.00 | E9: 8.70 | F9: 57.90 | G9: 372.00 | H9: 0.05 | K9: 1.71 | L9: 21.57 | N9: 204.08 | O9: 6.99
A10: 413 | B10: Колбаса вареная | C10: 50 | D10: 5.33 | E10: 11.47 | F10: 0.77 | G10: 127.68 | L10: 6.50 | O10: 0.36
A11: 701 | B11: Хлеб пшеничный | C11: 50 | D11: 3.8 | E11: 0.45 | F11: 23.35 | G11: 106.8 | H11: 0.05 | L11: 9.3 | O11: 0.62
B12: Хлеб пшеничный | C12: 50
A14: 648 | B14: Кисель из концентрата на плодовых или ягодных экстратах | C14: 200 | D14: 0.10 | E14: 0 | F14: 31.46 | G14: 118.52 | L14: 0.20 | O14: 0.003
A15: ИТОГО: | C15: 550 | D15: =SUM(D8:D14) -> 23.23 | E15: =SUM(E8:E14) -> 20.62 | F15: =SUM(F8:F14) -> 113.48 | G15: =SUM(G8:G14) -> 725.00 | H15: 0.10 | K15: 1.71 | L15: 37.57 | N15: 204.08 | O15: 7.97
G16: Обед
A18: 101 | B18: Суп картофельный с горохом | C18: 250 | D18: 9.88 | E18: 7.25 | F18: 24.05 | G18: 201.75 | I18: 5.83 | L18: =(10/1000*175)+41.48 -> 43.23 | N18: 38.25 | O18: 1.83
A19: 17 | B19: Котлеты из курицы из полуфабрикатов высокой степени готовности (2 шт.по 80 г) | C19: 160 | D19: 27.84 | E19: 20.16 | F19: 1.60 | G19: 473.60 | L19: 144.60 | N19: 20.80 | O19: 1.60
A20: 139 | B20: Капуста тушеная | C20: 200 | D20: 2.04 | E20: 3.68 | F20: 7.89 | G20: 77.00 | I20: 17.08 | L20: 58.75 | N20: 40.69 | O20: 46.67
A21: 376 | B21: Чай с сахаром | C21: 200/15 | D21: 0.07 | E21: 0.02 | F21: 15.00 | G21: 60.00 | H21: =0.01/5 -> 0.00 | I21: 0.03 | J21: =0 -> 0 | K21: =0 -> 0 | L21: 11.10 | N21: 1.40 | O21: 0.28
A22: 701 | B22: Хлеб ржано-пшеничный | C22: 40 | D22: 3.80 | E22: 0.45 | F22: 23.35 | G22: 114.60 | H22: 0.05 | L22: 9.30 | O22: 0.62
A23: 701 | B23: Хлеб пшеничный | C23: 40 | D23: 3.04 | E23: 0.36 | F23: 18.68 | G23: 85.44 | H23: 0.05 | L23: 9.30 | O23: 0.62
A24: ИТОГО: | C24: 905 | D24: 46.67 | E24: 31.92 | F24: =SUM(F17:F23) -> 90.57 | G24: =SUM(G17:G23) -> 1,012.39 | H24: 0.10 | I24: 22.94 | L24: 276.28 | N24: 101.14 | O24: 51.62
A29: ИТОГО: | D29: =SUM(D26:D28) -> 0 | E29: =SUM(E26:E28) -> 0 | F29: =SUM(F26:F28) -> 0 | G29: =SUM(G26:G28) -> 0
A30: ИТОГО за день: | C30: 1455 | D30: =SUM(D8:D14)+SUM(D17:D23)+SUM(D26:D28) -> 69.90 | E30: =SUM(E8:E14)+SUM(E17:E23)+SUM(E26:E28) -> 52.54 | F30: =SUM(F8:F14)+SUM(F17:F23)+SUM(F26:F28) -> 204.05 | G30: =SUM(G8:G14)+SUM(G17:G23)+SUM(G26:G28) -> 1,737.39 | H30: 0.2 | I30: 22.94 | K30: 1.71 | L30: 313.85 | N30: 305.22 | O30: 59.59
C32: Средние показания на день | G32: пищевые вещества | J32: энергет. ценн. ккал
G33: Б | H33: Ж | I33: У
C34: Потребность по СаН ПиН (60-70%) | G34: 46,2-53,9 | H34: 47,4-55,3 | I34: 201-234,5 | J34: 1410-1645
C35: По меню | G35: =D30 -> 69.90 | H35: =E30 -> 52.54 | I35: =F30 -> 204.05 | J35: =G30 -> 1737.39
B37: Рекомендуемые среднесуточные наборы пищевых продуктов, в том числе используемые для приготовления блюд и напитков, для обучающихся общеобразовательных учреждений
B38: Наименование продуктов | C38: Количество продуктов в зависимости от возраста обучающихся | G38: Средняя за 10 дней | K38: День: | L38: пятница
C39: в г, мл, брутто | E39: в г, мл, нетто | G39: в г, мл, брутто | H39: в г, мл, нетто | K39: Неделя: | L39: первая
C40: 7-11 лет | E40: 7-11 лет | G40: 7-11 лет | H40: 7-11 лет | K40: Сезон: | L40: осенне-зимний
B41: Хлеб ржаной (ржано-пшеничный) | C41: 80 | E41: 80 | G41: 40.00 | H41: 40.00 | K41: Возрастная категория: | L41: 7-11/12лет и старше
B42: Хлеб пшеничный | C42: 150 | E42: 150 | G42: =50+40 -> 90.00 | H42: 90.00
B43: Мука пшеничная | C43: 15 | E43: 15 | G43: =3+3.75+2.8 -> 9.55 | H43: =9.55 -> 9.55
B44: Крупы, бобовые | C44: 45 | E44: 45 | G44: =21+31 -> 52.00 | H44: 52.00
B45: Макаронные изделия | C45: 15 | E45: 15
B46: Картофель | C46: 250 <*> | E46: 188 | G46: =67+171 -> 238.00 | H46: =50+129 -> 179.00
B47: Овощи свежие, зелень | C47: 350 | E47: 280 <**> | G47: =12+12.5+3.25+98.6+12.5 -> 138.85 | H47: =10+10+2.5+78.9+10 -> 111.40
B48: Фрукты (плоды) свежие | C48: 200 | E48: 185 <**> | G48: 134.00 | H48: 130.00
B49: Фрукты (плоды) сухие, в т.ч. шиповник | C49: 15 | E49: 15
B50: Соки плодоовощные, напитки витаминизированные, в т.ч. инстантные | C50: 200 | E50: 200
B51: Мясо жилованное (мясо на кости) 1 кат. | C51: 77 (95) | E51: 70 | G51: =81+40 -> 121.00 | H51: =71+25 -> 96.00
B52: Цыплята 1 категории потрошеные (куры 1 кат. п/п) | C52: 40 (51) | E52: 35
B53: Рыба-филе | C53: 60 | E53: 58
B54: Колбасные изделия | C54: 15 | E54: 14.7
B55: Молоко (массовая доля жира 2,5%, 3,2%) | C55: 300 | E55: 300 | G55: =100+24+1.92 -> 125.92 | H55: 125.92
B56: Кисломолочные продукты (массовая доля жира 2,5%, 3,2%) | C56: 150 | E56: 150 | G56: 207.00 | H56: 200.00
B57: Творог (массовая доля жира не более 9%) | C57: 50 | E57: 50
B58: Сыр | C58: 10 | E58: 9.8
B59: Сметана (массовая доля жира не более 15%) | C59: 10 | E59: 10 | G59: 12.50 | H59: 12.50
B60: Масло сливочное | C60: 30 | E60: 30 | G60: =5+10+5+10+5.25+3.87 -> 39.12 | H60: =39.12 -> 39.12
B61: Масло растительное | C61: 15 | E61: 15 | G61: 5.00 | H61: 5.00
B62: Яйцо диетическое | C62: 1 шт. | E62: 40 | G62: 40.00 | H62: 40.00
B63: Сахар <***> | C63: 40 | E63: 40 | G63: =20+6+5+5.6 -> 36.60 | H63: 36.60
B64: Кондитерские изделия | C64: 10 | E64: 10 | G64: 20.00 | H64: 20.00
B65: Чай | C65: 0.4 | E65: 0.4 | G65: 2.00 | H65: 2.00
B66: Какао | C66: 1.2 | E66: 1.2
B67: Дрожжи хлебопекарные | C67: 1 | E67: 1
B68: Соль | C68: 5 | E68: 5 | G68: 3.00 | H68: 3.00

Sheet 6 день
A1: День: | B1: понедельник
A2: Неделя: | B2: вторая
A3: Сезон: | B3: осенне-зимний
A4: Возрастная категория: | B4: 12 лет и старше
A5: № рец. | B5: Приём пищи, наименование блюда | C5: Масса порции | D5: Пищевые вещества (г.) | G5: Энергетическая ценность (ккал) | H5: Витамины (мг.) | L5: Минеральные вещества (мг.)
D6: Б | E6: Ж | F6: У | H6: В1 | I6: С | J6: А | K6: Е | L6: Са | M6: Р | N6: Мg | O6: Fe
A7: Завтрак
A8: 182 | B8: Каша пшеничная жидкая молочная с маслом сливочным | C8: 250 | D8: 7.51 | E8: 11.72 | F8: 37.05 | G8: 285.00 | I8: 1.17 | L8: 138.10 | N8: 15.90 | O8: 0.99
A9: 8 | B9: Бутерброд с п/к колбасой | C9: 60 | D9: 8.61 | E9: 15.67 | F9: 17.7 | G9: 240.80 | H9: 0.05 | K9: 0.02 | L9: 9.1 | M9: 73.2 | N9: 21.95 | O9: 0.62
B10: Хлеб пшеничный | C10: 40
B11: Колбаса п/к | C11: 20
A13: 379 | B13: Напиток кофейный с молоком | C13: 200 | D13: =15.83/5 -> 3.17 | E13: =13.39/5 -> 2.68 | F13: =79.73/5 -> 15.95 | G13: =503/5 -> 100.60 | I13: =6.5/5 -> 1.30 | L13: =628.9/5 -> 125.78 | N13: =70/5 -> 14.00 | O13: =0.67/5 -> 0.13
A14: ИТОГО: | C14: 510 | D14: =SUM(D8:D13) -> 19.29 | E14: =SUM(E8:E13) -> 30.07 | F14: =SUM(F8:F13) -> 70.70 | G14: =SUM(G8:G13) -> 626.40 | H14: 0.05 | I14: 2.47 | K14: 0.02 | L14: 272.98 | M14: 73.20 | N14: 51.85 | O14: 1.74
A15: Обед
A17: 140 | B17: Суп картофельный с макаронными изделиями | C17: 250 | D17: 6.70 | E17: 3.56 | F17: 12.46 | G17: 128.04 | H17: 0.09 | I17: 2.00 | J17: 0.05 | K17: 1.81 | L17: 88.36 | N17: 21.60 | O17: 2.13
A18: 234 | B18: Котлеты рыбные из полуфабрикатов высокой степени готовности | C18: 100 | D18: 13.98 | E18: 11.42 | F18: 19.94 | G18: 240.00 | I18: 1.76 | L18: 81.84 | N18: 55.12 | O18: 1.54
A19: 304 | B19: Рис отварной | C19: 180 | D19: 3.65 | E19: 11.69 | F19: 36.68 | G19: 209.70 | L19: 1.37 | N19: =108.9/20*3 -> 16.34 | O19: =3.51/20*3 -> 0.53
A20: 342 | B20: Компот из свежих яблок | C20: 200 | D20: =0.8/5 -> 0.16 | E20: =0.8/5 -> 0.16 | F20: =139.4/5 -> 27.88 | G20: =573/5 -> 114.60 | H20: =0.06 -> 0.06 | I20: =4.5/5 -> 0.90 | J20: =0 -> 0 | K20: =0.4/5 -> 0.08 | L20: =70.9/5 -> 14.18 | M20: =22/5 -> 4.40 | N20: =25.7/5 -> 5.14 | O20: =4.76/5 -> 0.95
A21: 701 | B21: Хлеб ржано-пшеничный | C21: 40 | D21: 3.80 | E21: 0.45 | F21: 23.35 | G21: 114.60 | H21: 0.05 | L21: 9.30 | O21: 0.62
A22: 701 | B22: Хлеб пшеничный | C22: 40 | D22: 3.04 | E22: 0.36 | F22: 18.68 | G22: 85.44 | H22: 0.05 | L22: 9.30 | O22: 0.62
A23: ИТОГО: | C23: 810 | D23: =SUM(D16:D22) -> 31.33 | E23: =SUM(E16:E22) -> 27.64 | F23: =SUM(F16:F22) -> 138.99 | G23: =SUM(G16:G22) -> 892.38 | H23: 0.25 | I23: 4.66 | J23: 0.05 | K23: 1.89 | L23: 204.35 | M23: 4.40 | N23: 98.20 | O23: 6.39
A28: ИТОГО: | D28: =SUM(D25:D27) -> 0 | E28: =SUM(E25:E27) -> 0 | F28: =SUM(F25:F27) -> 0 | G28: =SUM(G25:G27) -> 0
A29: ИТОГО за день: | C29: 1320 | D29: =SUM(D8:D13)+SUM(D16:D22)+SUM(D25:D27) -> 50.62 | E29: =SUM(E8:E13)+SUM(E16:E22)+SUM(E25:E27) -> 57.71 | F29: =SUM(F8:F13)+SUM(F16:F22)+SUM(F25:F27) -> 209.69 | G29: =SUM(G8:G13)+SUM(G16:G22)+SUM(G25:G27) -> 1,518.78 | H29: 0.30 | I29: 7.13 | J29: 0.05 | K29: 1.91 | L29: 477.33 | M29: 77.60 | N29: 150.05 | O29: 8.13
B31: Средние показания на день | F31: пищевые вещества | I31: энергет. ценн. ккал
F32: Б | G32: Ж | H32: У
B33: Потребность по СаН ПиН (60-70%) | F33: 46,2-53,9 | G33: 47,4-55,3 | H33: 201-234,5 | I33: 1410-1645
B34: По меню | F34: =D29 -> 50.62 | G34: =E29 -> 57.71 | H34: =F29 -> 209.69 | I34: =G29 -> 1518.78
B36: Рекомендуемые среднесуточные наборы пищевых продуктов, в том числе используемые для приготовления блюд и напитков, для обучающихся общеобразовательных учреждений
B37: Наименование продуктов | C37: Количество продуктов в зависимости от возраста обучающихся | G37: Средняя за 10 дней | J37: День: | K37: понедельник
C38: в г, мл, брутто | E38: в г, мл, нетто | G38: в г, мл, брутто | H38: в г, мл, нетто | J38: Неделя: | K38: вторая
C39: 7-11 лет | E39: 7-11 лет | G39: 7-11 лет | H39: 7-11 лет | J39: Сезон: | K39: осенне-зимний
B40: Хлеб ржаной (ржано-пшеничный) | C40: 80 | E40: 80 | G40: 40.00 | H40: 40.00 | J40: Возрастная категория: | L40: 7-11 /12лет и старше
B41: Хлеб пшеничный | C41: 150 | E41: 150 | G41: =50+40 -> 90.00 | H41: 90.00
B42: Мука пшеничная | C42: 15 | E42: 15 | G42: =35+0.71 -> 35.71 | H42: 35.71
B43: Крупы, бобовые | C43: 45 | E43: 45 | G43: =54 -> 54.00 | H43: =54 -> 54.00
B44: Макаронные изделия | C44: 15 | E44: 15 | G44: 10.00 | H44: 10.00
B45: Картофель | C45: 250 <*> | E45: 188 | G45: =53.4+28.9 -> 82.30 | H45: 82.30
B46: Овощи свежие, зелень | C46: 350 | E46: 280 <**> | G46: =10+9.6+2+6+6+19.1+12.6+18.8+21.4+18.8 -> 124.30 | H46: =40+21+8+2+8+15+10+5+5+5 -> 119.00
B47: Фрукты (плоды) свежие | C47: 200 | E47: 185 <**> | G47: =100+45.4 -> 145.40 | H47: 145.40
B48: Фрукты (плоды) сухие, в т.ч. шиповник | C48: 15 | E48: 15
B49: Соки плодоовощные, напитки витаминизированные, в т.ч. инстантные | C49: 200 | E49: 200
B50: Мясо жилованное (мясо на кости) 1 кат. | C50: 77 (95) | E50: 70
B51: Цыплята 1 категории потрошеные (куры 1 кат. п/п) | C51: 40 (51) | E51: 35 | G51: 40.00 | H51: 25.00
B52: Рыба-филе | C52: 60 | E52: 58 | G52: 246.00 | H52: 124.00
B53: Колбасные изделия | C53: 15 | E53: 14.7
B54: Молоко (массовая доля жира 2,5%, 3,2%) | C54: 300 | E54: 300 | G54: 150.00
B55: Кисломолочные продукты (массовая доля жира 2,5%, 3,2%) | C55: 150 | E55: 150 | G55: 206.00 | H55: 200.00
B56: Творог (массовая доля жира не более 9%) | C56: 50 | E56: 50
B57: Сыр | C57: 10 | E57: 9.8
B58: Сметана (массовая доля жира не более 15%) | C58: 10 | E58: 10
B59: Масло сливочное | C59: 30 | E59: 30 | G59: =10+6.75+4+10+10 -> 40.75 | H59: 40.75
B60: Масло растительное | C60: 15 | E60: 15 | G60: =2+0.32+10 -> 12.32 | H60: 12.32
B61: Яйцо диетическое | C61: 1 шт. | E61: 40 | G61: 80.10 | H61: 80.10
B62: Сахар <***> | C62: 40 | E62: 40 | G62: =20+24+0.35 -> 44.35 | H62: 44.35
B63: Кондитерские изделия | C63: 10 | E63: 10
B64: Чай | C64: 0.4 | E64: 0.4
B65: Какао | C65: 1.2 | E65: 1.2
B66: Дрожжи хлебопекарные | C66: 1 | E66: 1 | G66: 0.10 | H66: 0.10
B67: Соль | C67: 5 | E67: 5 | G67: 3.03 | H67: 3.03

Sheet 7 день
A1: День: | B1: вторник
A2: Неделя: | B2: вторая
A3: Сезон: | B3: осенне-зимний
A4: Возрастная категория: | B4: 12 лет и старше
A5: № рец. | B5: Приём пищи, наименование блюда | C5: Масса порции | D5: Пищевые вещества (г.) | G5: Энергетическая ценность (ккал) | H5: Витамины (мг.) | L5: Минеральные вещества (мг.)
D6: Б | E6: Ж | F6: У | H6: В1 | I6: С | J6: А | K6: Е | L6: Са | M6: Р | N6: Мg | O6: Fe
A7: Завтрак
A8: 173 | B8: Суп молочный с рисом | C8: 250 | D8: 9.04 | E8: 13.44 | F8: 40.16 | G8: 137.90 | H8: 0.21 | I8: 0.96 | J8: 54.80 | L8: 158.65 | M8: 264.86 | N8: 72.05 | O8: 2.09
A9: 8 | B9: Бутерброд с п/к колбасой | C9: 60 | D9: 8.61 | E9: 15.67 | F9: 17.70 | G9: 240.80 | H9: 0.05 | K9: 0.02 | L9: 9.10 | N9: 15.90 | O9: 0.99
B10: Хлеб пшеничный | C10: 40
B11: Колбаса п/к | C11: 20
A13: 382 | B13: Какао с молоком | C13: 200 | D13: =20.39/10*2 -> 4.08 | E13: =17.72/10*2 -> 3.54 | F13: =87.89/10*2 -> 17.58 | G13: =593/10*2 -> 118.60 | I13: =7.94/10*2 -> 1.59 | L13: =761.1/10*2 -> 152.22 | N13: =106.7/10*2 -> 21.34 | O13: =2.39/10*2 -> 0.48
A15: ИТОГО: | C15: 510 | D15: =SUM(D8:D14) -> 21.73 | E15: =SUM(E8:E14) -> 32.65 | F15: =SUM(F8:F14) -> 75.44 | G15: =SUM(G8:G14) -> 497.30 | H15: 0.26 | I15: 2.55 | J15: 54.80 | K15: 0.02 | L15: 319.97 | M15: 264.86 | N15: 109.29 | O15: 3.56
A16: Обед
A18: 88 | B18: Щи из свежей капусты с картофелем на курином бульоне | C18: 250 | D18: 2.57 | E18: =(19.8/4)+0.2 -> 5.15 | F18: =31.61/4 -> 7.90 | G18: =(359/4)+5+30 -> 124.75 | I18: =63.1/4 -> 15.78 | L18: =(197/4)+2 -> 51.25 | N18: =88.5/4 -> 22.13 | O18: =3.3/4 -> 0.83
A19: 309 | B19: Макароные изделия отварные с маслом | C19: 180 | D19: 1.50 | E19: 2.96 | F19: 21.63 | G19: 193.48 | L19: 5.63 | N19: 1.61 | O19: 0.51
A20: 17 | B20: Котлеты из курицы из полуфабрикатов высокой степени готовности (2 шт.по 80 г) | C20: 160 | D20: 27.84 | E20: 20.16 | F20: 1.60 | G20: 473.60 | L20: 144.60 | N20: 20.80 | O20: 1.60
A21: 342 | B21: Компот из свежих яблок | C21: 200 | D21: 0.16 | E21: 0.16 | F21: 27.88 | G21: 114.6 | H21: 0.06 | I21: 0.9 | K21: 0.08 | L21: 14.8 | M21: 4.4 | N21: 5.14 | O21: 0.95
A22: 701 | B22: Хлеб ржано-пшеничный | C22: 40 | D22: 3.80 | E22: 0.45 | F22: 23.35 | G22: 114.60 | H22: 0.05 | L22: 9.30 | O22: 0.62
A23: 701 | B23: Хлеб пшеничный | C23: 50 | D23: 3.80 | E23: 0.45 | F23: 23.35 | G23: 106.80 | H23: 0.05 | L23: 9.30 | O23: 0.62
A24: ИТОГО: | C24: 880 | D24: =SUM(D17:D23) -> 39.67 | E24: 29.33 | F24: =SUM(F17:F23) -> 105.71 | G24: 1,127.83 | H24: 0.16 | I24: 16.68 | K24: 0.08 | L24: 223.84 | M24: 4.40 | N24: 49.68 | O24: 8.69
A29: ИТОГО: | D29: =SUM(D26:D28) -> 0 | E29: =SUM(E26:E28) -> 0 | F29: =SUM(F26:F28) -> 0 | G29: =SUM(G26:G28) -> 0
A30: ИТОГО за день: | C30: 1360 | D30: 61.40 | E30: =SUM(E8:E14)+SUM(E17:E23)+SUM(E26:E28) -> 61.98 | F30: =SUM(F8:F14)+SUM(F17:F23)+SUM(F26:F28) -> 181.15 | G30: 1,625.13 | H30: 0.42 | I30: 19.23 | J30: 54.80 | K30: 0.10 | L30: 554.85 | M30: 269.26 | N30: 158.97 | O30: 12.25
B32: Средние показания на день | F32: пищевые вещества | I32: энергет. ценн. ккал
F33: Б | G33: Ж | H33: У
B34: Потребность по СаН ПиН (60-70%) | F34: 46,2-53,9 | G34: 47,4-55,3 | H34: 201-234,5 | I34: 1410-1645
B35: По меню | F35: =D30 -> 61.40 | G35: =E30 -> 61.98 | H35: =F30 -> 181.15 | I35: =G30 -> 1625.13
B37: Рекомендуемые среднесуточные наборы пищевых продуктов, в том числе используемые для приготовления блюд и напитков, для обучающихся общеобразовательных учреждений
B38: Наименование продуктов | C38: Количество продуктов в зависимости от возраста обучающихся | G38: Средняя за 10 дней | J38: День: | K38: вторник
C39: в г, мл, брутто | E39: в г, мл, нетто | G39: в г, мл, брутто | H39: в г, мл, нетто | J39: Неделя: | K39: вторая
C40: 7-11 лет | E40: 7-11 лет | G40: 7-11 лет | H40: 7-11 лет | J40: Сезон: | K40: осенне-зимний
B41: Хлеб ржаной (ржано-пшеничный) | C41: 80 | E41: 80 | G41: 40.00 | H41: 40.00 | J41: Возрастная категория: | K41: 7-11/12 лет и старше
B42: Хлеб пшеничный | C42: 150 | E42: 150 | G42: 70.00 | H42: 70.00
B43: Мука пшеничная | C43: 15 | E43: 15 | G43: =2+0.6+17.9 -> 20.50 | H43: 20.50
B44: Крупы, бобовые | C44: 45 | E44: 45 | G44: 44.00 | H44: 44.00
B45: Макаронные изделия | C45: 15 | E45: 15 | G45: 52.50 | H45: 52.50
B46: Картофель | C46: 250 <*> | E46: 188 | G46: 40.00 | H46: 30.00
B47: Овощи свежие, зелень | C47: 350 | E47: 280 <**> | G47: =63+12.5+3.25+12+2.5+3+2.5+12.5+12+12+92.6 -> 227.85 | H47: =50+10+2.5+10+2.5+10+2.5+2+2+30 -> 121.50
B48: Фрукты (плоды) свежие | C48: 200 | E48: 185 <**> | G48: =20.7+100+14.3 -> 135.00 | H48: =100+10+18.2 -> 128.20
B49: Фрукты (плоды) сухие, в т.ч. шиповник | C49: 15 | E49: 15 | G49: =5.6 -> 5.60 | H49: 10.00
B50: Соки плодоовощные, напитки витаминизированные, в т.ч. инстантные | C50: 200 | E50: 200 | G50: 200.00 | H50: 200.00
B51: Мясо жилованное (мясо на кости) 1 кат. | C51: 77 (95) | E51: 70 | G51: =110+40 -> 150.00 | H51: =81+25 -> 106.00
B52: Цыплята 1 категории потрошеные (куры 1 кат. п/п) | C52: 40 (51) | E52: 35
B53: Рыба-филе | C53: 60 | E53: 58
B54: Колбасные изделия | C54: 15 | E54: 14.7
B55: Молоко (массовая доля жира 2,5%, 3,2%) | C55: 300 | E55: 300 | G55: =211+200 -> 411.00 | H55: =400 -> 400.00
B56: Кисломолочные продукты (массовая доля жира 2,5%, 3,2%) | C56: 150 | E56: 150
B57: Творог (массовая доля жира не более 9%) | C57: 50 | E57: 50
B58: Сыр | C58: 10 | E58: 9.8 | G58: 16.00 | H58: 15.00
B59: Сметана (массовая доля жира не более 15%) | C59: 10 | E59: 10
B60: Масло сливочное | C60: 30 | E60: 30 | G60: =5+10+4.5+0.8 -> 20.30 | H60: 20.30
B61: Масло растительное | C61: 15 | E61: 15 | G61: 15.70 | H61: 15.70
B62: Яйцо диетическое | C62: 1 шт. | E62: 40 | G62: =0.7+0.9 -> 1.60 | H62: 1.60
B63: Сахар <***> | C63: 40 | E63: 40 | G63: =1+6+2+5.4+20+0.9 -> 35.30 | H63: 35.30
B64: Кондитерские изделия | C64: 10 | E64: 10
B65: Чай | C65: 0.4 | E65: 0.4
B66: Какао | C66: 1.2 | E66: 1.2
B67: Дрожжи хлебопекарные | C67: 1 | E67: 1 | G67: 0.50 | H67: 0.50
B68: Соль | C68: 5 | E68: 5 | G68: 3.20 | H68: 3.20

Sheet 8 день
A1: День: | B1: среда
A2: Неделя: | B2: вторая
A3: Сезон: | B3: осенне-зимний
A4: Возрастная категория: | B4: 12 лет и старше
A5: № рец. | B5: Приём пищи, наименование блюда | C5: Масса порции | D5: Пищевые вещества (г.) | G5: Энергетическая ценность (ккал) | H5: Витамины (мг.) | L5: Минеральные вещества (мг.)
D6: Б | E6: Ж | F6: У | H6: В1 | I6: С | J6: А | K6: Е | L6: Са | M6: Р | N6: Мg | O6: Fe
A7: Завтрак
A8: 173 | B8: Каша молочная овсяная вязкая со сливочным маслом | C8: 260 | D8: 10.20 | E8: 13.44 | F8: 44.50 | G8: 330.00 | H8: 0.25 | I8: 0.63 | L8: 171.67 | N8: 84.30 | O8: 2.08
A10: 3 | B10: Бутерброд с маслом сливочным и сыром | C10: 80 | D10: 6.53 | E10: 11.91 | F10: 12.31 | G10: 170.5 | H10: 0.06 | I10: 0.4 | J10: 0.11 | K10: 0.85 | L10: 259.9 | M10: 162.6 | N10: 21.95 | O10: 0.62
B11: Хлеб пшеничный | C11: 40
B12: Сыр | C12: 20
B13: Масло сливочное | C13: 20
A14: 376 | B14: Чай с сахаром | C14: 200 | D14: 0.07 | E14: 0.02 | F14: 15.00 | G14: 60.00 | I14: 0.03 | L14: 11.10 | N14: 1.40 | O14: 0.28
A15: ИТОГО: | C15: 540 | D15: 16.80 | E15: =SUM(E8:E14) -> 25.37 | F15: =SUM(F8:F14) -> 71.81 | G15: =SUM(G8:G14) -> 560.50 | H15: 0.31 | I15: 1.06 | J15: 1.06 | K15: 0.85 | L15: 442.67 | M15: 162.60 | N15: 107.65 | O15: 2.98
A16: Обед
A18: 82 | B18: Борщ с капустой и картофелем | C18: 250 | D18: =(7.21/4)+0.8 -> 2.60 | E18: =(19.68/4)+0.2 -> 5.12 | F18: 10.99 | G18: =(415/4)+5+30 -> 138.75 | I18: =42.7/4 -> 10.68 | L18: =(198.9/4)+2 -> 51.73 | N18: =104.5/4 -> 26.13 | O18: =4.9/4 -> 1.23
A19: 259 | B19: Жаркое по-домашнему | C19: 250 | D19: 24.17 | E19: 21.66 | F19: 27.66 | G19: 417.59 | I19: 4.00 | L19: 87.90 | N19: 19.00 | O19: 1.30
A21: 349 | B21: Компот из смеси сухофруктов | C21: 200 | D21: 0.66 | E21: 0.09 | F21: 32.01 | G21: 132.80 | I21: 0.73 | L21: 32.48 | N21: 17.46 | O21: 0.70
A22: 701 | B22: Хлеб ржано-пшеничный | C22: 40 | D22: 3.80 | E22: 0.45 | F22: 23.35 | G22: 114.60 | H22: 0.04 | L22: 9.30 | O22: 0.62
A23: 701 | B23: Хлеб пшеничный | C23: 40 | D23: 3.04 | E23: 0.36 | F23: 18.68 | G23: 85.44 | H23: 0.05 | L23: 9.30 | O23: 0.62
A24: ИТОГО: | C24: 780 | D24: =SUM(D17:D23) -> 34.27 | E24: 27.68 | F24: =SUM(F17:F23) -> 112.69 | G24: =SUM(G17:G23) -> 889.18 | H24: 0.09 | I24: 16.30 | L24: 190.71 | N24: 62.59 | O24: 4.47
A30: ИТОГО: | D30: =SUM(D26:D29) -> 0 | E30: =SUM(E26:E29) -> 0 | F30: =SUM(F26:F29) -> 0 | G30: =SUM(G26:G29) -> 0
A31: ИТОГО за день: | C31: 1320 | D31: 50.35 | E31: =SUM(E8:E14)+SUM(E17:E23)+SUM(E26:E29) -> 53.05 | F31: =SUM(F8:F14)+SUM(F17:F23)+SUM(F26:F29) -> 184.50 | G31: =SUM(G8:G14)+SUM(G17:G23)+SUM(G26:G29) -> 1,449.68 | H31: 0.4 | I31: 17.36 | J31: 0.11 | K31: 0.85 | L31: 633.38 | M31: 162.6 | N31: 170.24 | O31: 7.45
B33: Средние показания на день | F33: пищевые вещества | I33: энергет. ценн. ккал
F34: Б | G34: Ж | H34: У
B35: Потребность по СаН ПиН (60-70%) | F35: 46,2-53,9 | G35: 47,4-55,3 | H35: 201-234,5 | I35: 1410-1645
B36: По меню | F36: =D31 -> 50.35 | G36: =E31 -> 53.05 | H36: =F31 -> 184.50 | I36: =G31 -> 1,449.68
B38: Рекомендуемые среднесуточные наборы пищевых продуктов, в том числе используемые для приготовления блюд и напитков, для обучающихся общеобразовательных учреждений | K38: День: | L38: среда
B39: Наименование продуктов | C39: Количество продуктов в зависимости от возраста обучающихся | G39: Средняя за 10 дней | K39: Неделя: | L39: вторая
C40: в г, мл, брутто | E40: в г, мл, нетто | G40: в г, мл, брутто | H40: в г, мл, нетто | K40: Сезон: | L40: осенне-зимний
C41: 7-11 лет | E41: 7-11 лет | G41: 7-11 лет | H41: 7-11 лет | K41: Возрастная категория: | L41: 7-11 /12лет и старше
B42: Хлеб ржаной (ржано-пшеничный) | C42: 80 | E42: 80 | G42: 40.00 | H42: 40.00
B43: Хлеб пшеничный | C43: 150 | E43: 150 | G43: =90 -> 90.00 | H43: 90.00
B44: Мука пшеничная | C44: 15 | E44: 15 | G44: =3+3.75+11.5 -> 18.25 | H44: 18.25
B45: Крупы, бобовые | C45: 45 | E45: 45 | G45: =35+40 -> 75.00 | H45: 75.00
B46: Макаронные изделия | C46: 15 | E46: 15
B47: Картофель | C47: 250 <*> | E47: 188 | G47: 27.00 | H47: 20.00
B48: Овощи свежие, зелень | C48: 350 | E48: 280 <**> | G48: =98.6+12.5+50+25+12.5+3.25+12+7.5 -> 221.35 | H48: =78.9+10+40+20+10+2.5+10+7.5 -> 178.90
B49: Фрукты (плоды) свежие | C49: 200 | E49: 185 <**> | G49: 100.00 | H49: 100.00
B50: Фрукты (плоды) сухие, в т.ч. шиповник | C50: 15 | E50: 15 | G50: 20.00 | H50: 37.00
B51: Соки плодоовощные, напитки витаминизированные, в т.ч. инстантные | C51: 200 | E51: 200
B52: Мясо жилованное (мясо на кости) 1 кат. | C52: 77 (95) | E52: 70 | G52: =81+40 -> 121.00 | H52: =71+25 -> 96.00
B53: Цыплята 1 категории потрошеные (куры 1 кат. п/п) | C53: 40 (51) | E53: 35
B54: Рыба-филе | C54: 60 | E54: 58
B55: Колбасные изделия | C55: 15 | E55: 14.7
B56: Молоко (массовая доля жира 2,5%, 3,2%) | C56: 300 | E56: 300 | G56: 100.00 | H56: 100.00
B57: Кисломолочные продукты (массовая доля жира 2,5%, 3,2%) | C57: 150 | E57: 150 | G57: 237.00 | H57: 230.00
B58: Творог (массовая доля жира не более 9%) | C58: 50 | E58: 50 | G58: 83.70 | H58: 82.00
B59: Сыр | C59: 10 | E59: 9.8
B60: Сметана (массовая доля жира не более 15%) | C60: 10 | E60: 10 | G60: 12.50 | H60: 12.50
B61: Масло сливочное | C61: 30 | E61: 30 | G61: 30.00 | H61: 30.00
B62: Масло растительное | C62: 15 | E62: 15 | G62: 15.00 | H62: 15.00
B63: Яйцо диетическое | C63: 1 шт. | E63: 40 | G63: 40.00 | H63: 40.00
B64: Сахар <***> | C64: 40 | E64: 40 | G64: =5+20+2.5+6+6 -> 39.50 | H64: 39.50
B65: Кондитерские изделия | C65: 10 | E65: 10
B66: Чай | C66: 0.4 | E66: 0.4 | G66: 0.50 | H66: 0.50
B67: Какао | C67: 1.2 | E67: 1.2
B68: Дрожжи хлебопекарные | C68: 1 | E68: 1
B69: Соль | C69: 5 | E69: 5 | G69: 3.80 | H69: 3.80

Sheet 9 день
A1: День: | B1: четверг
A2: Неделя: | B2: вторая
A3: Сезон: | B3: осенне-зимний
A4: Возрастная категория: | B4: 12 лет и старше
A5: № рец. | B5: Приём пищи, наименование блюда | C5: Масса порции | D5: Пищевые вещества (г.) | G5: Энергетическая ценность (ккал) | H5: Витамины (мг.) | L5: Минеральные вещества (мг.)
D6: Б | E6: Ж | F6: У | H6: В1 | I6: С | J6: А | K6: Е | L6: Са | M6: Р | N6: Мg | O6: Fe
A7: Завтрак
A8: 182 | B8: Каша пшенная жидкая молочная с маслом сливочным | C8: 250 | D8: 7.51 | E8: 11.72 | F8: 37.05 | G8: 285.00 | I8: 1.17 | L8: 138.10 | N8: 47.60 | O8: 1.23
A10: 8 | B10: Бутерброд с п/к колбасой | C10: 60 | D10: 8.61 | E10: 15.67 | F10: 17.7 | G10: 240.8 | H10: 0.05 | K10: 0.02 | L10: 9.1 | M10: 73.2 | N10: 15.9 | O10: 0.99
B11: Хлеб пшеничный | C11: 40
B12: Колбаса п/к | C12: 20
A14: 379 | B14: Напиток кофейный с молоком | C14: 200 | D14: =15.83/5 -> 3.17 | E14: =13.39/5 -> 2.68 | F14: =79.73/5 -> 15.95 | G14: =503/5 -> 100.60 | I14: =6.5/5 -> 1.30 | L14: =628.9/5 -> 125.78 | N14: =70/5 -> 14.00 | O14: =0.67/5 -> 0.13
A15: ИТОГО: | C15: 510 | D15: =SUM(D8:D14) -> 19.29 | E15: =SUM(E8:E14) -> 30.07 | F15: =SUM(F8:F14) -> 70.70 | G15: =SUM(G8:G14) -> 626.40 | H15: 0.05 | I15: 2.47 | K15: 0.02 | L15: 272.98 | M15: 73.20 | N15: 77.50 | O15: 2.35
A16: Обед
A18: 101 | B18: Суп картофельный с горохом | C18: 250 | D18: 9.88 | E18: 7.25 | F18: 24.05 | G18: 201.75 | I18: 5.83 | L18: 43.23 | N18: 38.25 | O18: 1.83
A19: 234 | B19: Котлеты рыбные из полуфабрикатов высокой степени готовности | C19: 100 | D19: 13.98 | E19: 11.42 | F19: =9.97*2 -> 19.94 | G19: =120*2 -> 240.00 | I19: =0.88*2 -> 1.76 | L19: =40.92*2 -> 81.84 | N19: =27.56*2 -> 55.12 | O19: =0.77*2 -> 1.54
A20: 139 | B20: Капуста тушеная | C20: 200 | D20: 2.04 | E20: 3.68 | F20: 7.89 | G20: 77.00 | I20: 17.08 | L20: 58.75 | N20: 40.69 | O20: 20.85
A21: 701 | B21: Хлеб ржано-пшеничный | C21: 40 | D21: 3.80 | E21: 0.45 | F21: 23.35 | G21: 114.60 | H21: 0.05 | L21: 9.30 | O21: 0.62
A22: 389 | B22: Сок фруктовый (яблочный) | C22: 200 | D22: =1 -> 1 | E22: 0 | F22: =101/5 -> 20.2 | G22: =424/5 -> 84.8 | I22: =30/5 -> 6 | L22: =70/5 -> 14 | N22: =40/5 -> 8 | O22: =14/5 -> 2.8
A23: 701 | B23: Хлеб пшеничный | C23: 40 | D23: 3.04 | E23: 0.36 | F23: 18.68 | G23: 85.44 | H23: 0.05 | L23: 9.30 | O23: 0.62
A24: ИТОГО: | C24: 790 | D24: =SUM(D17:D23) -> 33.74 | E24: =SUM(E17:E23) -> 23.16 | F24: =SUM(F17:F23) -> 114.11 | G24: =SUM(G17:G23) -> 803.59 | H24: 0.05 | I24: 30.67 | L24: 216.42 | N24: 142.06 | O24: 28.26
A29: ИТОГО: | D29: =SUM(D26:D28) -> 0 | E29: =SUM(E26:E28) -> 0 | F29: =SUM(F26:F28) -> 0 | G29: =SUM(G26:G28) -> 0
A30: ИТОГО за день: | C30: 1300 | D30: =SUM(D8:D14)+SUM(D17:D23)+SUM(D26:D28) -> 53.03 | E30: =SUM(E8:E14)+SUM(E17:E23)+SUM(E26:E28) -> 53.23 | F30: =SUM(F8:F14)+SUM(F17:F23)+SUM(F26:F28) -> 184.81 | G30: =SUM(G8:G14)+SUM(G17:G23)+SUM(G26:G28) -> 1,429.99 | H30: 0.10 | I30: 33.14 | K30: 0.02 | L30: 489.40 | M30: 73.20 | N30: 219.56 | O30: 30.61
B32: Средние показания на день | F32: пищевые вещества | I32: энергет. ценн. ккал
F33: Б | G33: Ж | H33: У
B34: Потребность по СаН ПиН (60-70%) | F34: 46,2-53,9 | G34: 47,4-55,3 | H34: 201-234,5 | I34: 1410-1645
B35: По меню | F35: =D30 -> 53.03 | G35: =E30 -> 53.23 | H35: =F30 -> 184.81 | I35: =G30 -> 1429.99
B37: Рекомендуемые среднесуточные наборы пищевых продуктов, в том числе используемые для приготовления блюд и напитков, для обучающихся общеобразовательных учреждений
B38: Наименование продуктов | C38: Количество продуктов в зависимости от возраста обучающихся | G38: Средняя за 10 дней | K38: День: | L38: четверг
C39: в г, мл, брутто | E39: в г, мл, нетто | G39: в г, мл, брутто | H39: в г, мл, нетто | K39: Неделя: | L39: вторая
C40: 7-11 лет | E40: 7-11 лет | G40: 7-11 лет | H40: 7-11 лет | K40: Сезон: | L40: осенне-зимний
B41: Хлеб ржаной (ржано-пшеничный) | C41: 80 | E41: 80 | G41: 40.00 | H41: 40.00 | K41: Возрастная категория: | L41: 7-11/12 лет и старше
B42: Хлеб пшеничный | C42: 150 | E42: 150 | G42: =18+10+50+40 -> 118.00 | H42: 118.00
B43: Мука пшеничная | C43: 15 | E43: 15 | G43: 9.60 | H43: 9.60
B44: Крупы, бобовые | C44: 45 | E44: 45 | G44: =10+23 -> 33.00 | H44: 33.00
B45: Макаронные изделия | C45: 15 | E45: 15
B46: Картофель | C46: 250 <*> | E46: 188 | G46: 33.25 | H46: 25.00
B47: Овощи свежие, зелень | C47: 350 | E47: 280 <**> | G47: =85.6+37.5+12.5+12+142+3+5+6 -> 303.60 | H47: =67+30+10+10+114+2.5+4+6 -> 243.50
B48: Фрукты (плоды) свежие | C48: 200 | E48: 185 <**> | G48: =135.7 -> 135.70 | H48: 125.00
B49: Фрукты (плоды) сухие, в т.ч. шиповник | C49: 15 | E49: 15 | G49: 5.10 | H49: 5.00
B50: Соки плодоовощные, напитки витаминизированные, в т.ч. инстантные | C50: 200 | E50: 200 | G50: 200.00 | H50: 200.00
B51: Мясо жилованное (мясо на кости) 1 кат. | C51: 77 (95) | E51: 70 | G51: 40.00 | H51: 25.00
B52: Цыплята 1 категории потрошеные (куры 1 кат. п/п) | C52: 40 (51) | E52: 35
B53: Рыба-филе | C53: 60 | E53: 58 | G53: 90.00 | H53: 66.00
B54: Колбасные изделия | C54: 15 | E54: 14.7
B55: Молоко (массовая доля жира 2,5%, 3,2%) | C55: 300 | E55: 300 | G55: =26+50+100 -> 176.00 | H55: 176.00
B56: Кисломолочные продукты (массовая доля жира 2,5%, 3,2%) | C56: 150 | E56: 150 | G56: 206.00 | H56: 200.00
B57: Творог (массовая доля жира не более 9%) | C57: 50 | E57: 50
B58: Сыр | C58: 10 | E58: 9.8
B59: Сметана (массовая доля жира не более 15%) | C59: 10 | E59: 10 | G59: 22.00 | H59: 22.00
B60: Масло сливочное | C60: 30 | E60: 30 | G60: 20.00 | H60: 20.00
B61: Масло растительное | C61: 15 | E61: 15 | G61: =6+10+5+2+4 -> 27.00 | H61: 27.00
B62: Яйцо диетическое | C62: 1 шт. | E62: 40 | G62: 3.00 | H62: 3.00
B63: Сахар <***> | C63: 40 | E63: 40 | G63: =3+4+3+20+1 -> 31.00 | H63: 31.00
B64: Кондитерские изделия | C64: 10 | E64: 10 | G64: 20.00 | H64: 20.00
B65: Чай | C65: 0.4 | E65: 0.4
B66: Какао | C66: 1.2 | E66: 1.2
B67: Дрожжи хлебопекарные | C67: 1 | E67: 1
B68: Соль | C68: 5 | E68: 5 | G68: 3.00 | H68: 3.00

Sheet 10 день
A1: День: | B1: пятница
A2: Неделя: | B2: вторая
A3: Сезон: | B3: осенне-зимний
A4: Возрастная категория: | B4: 12 лет и старше
A5: № рец. | B5: Приём пищи, наименование блюда | C5: Масса порции | D5: Пищевые вещества (г.) | G5: Энергетическая ценность (ккал) | H5: Витамины (мг.) | L5: Минеральные вещества (мг.)
D6: Б | E6: Ж | F6: У | H6: В1 | I6: С | J6: А | K6: Е | L6: Са | M6: Р | N6: Мg | O6: Fe
G7: Завтрак
A8: 182 | B8: Каша жидкая молочная из риса с маслом сливочным | C8: 250 | D8: 5.10 | E8: 10.22 | F8: 33.42 | G8: 251.00 | H8: 0.06 | I8: 1.17 | J8: 58.00 | K8: 0.21 | L8: 130.09 | N8: 30.12 | O8: 0.47
A9: 8 | B9: Бутерброд с п/к колбасой | C9: 60 | D9: 8.61 | E9: 15.67 | F9: 17.7 | G9: 240.8 | H9: 0.05 | K9: 0.02 | L9: 9.1 | M9: 73.2 | N9: 15.9 | O9: 0.99
B10: Хлеб пшеничный | C10: 40
B11: Колбаса п/к | C11: 20
A13: 382 | B13: Какао с молоком | C13: 200 | D13: =20.39/10*2 -> 4.08 | E13: =17.72/10*2 -> 3.54 | F13: =87.89/10*2 -> 17.58 | G13: =593/10*2 -> 118.60 | I13: =7.94/10*2 -> 1.59 | L13: =761.1/10*2 -> 152.22 | N13: =106.7/10*2 -> 21.34 | O13: =2.39/10*2 -> 0.48
A14: ИТОГО: | C14: 510 | D14: =SUM(D8:D13) -> 17.79 | E14: =SUM(E8:E13) -> 29.43 | F14: =SUM(F8:F13) -> 68.70 | G14: =SUM(G8:G13) -> 610.40 | H14: 0.11 | I14: 2.76 | J14: 58.00 | K14: 0.23 | L14: 291.41 | M14: 73.20 | N14: 67.36 | O14: 1.94
A15: Обед
A17: 138 | B17: Суп картофельный с крупой "Крестьянский" | C17: 250 | D17: 2.80 | E17: 3.00 | F17: 20.50 | G17: 121.00 | I17: 5.60 | L17: 105.40 | N17: 18.00 | O17: 0.70
A18: 413 | B18: Сосиски отварные | C18: 100 | D18: 8.88 | E18: 19.12 | F18: 1.28 | G18: 212.80 | L18: 10.83 | O18: 0.60
A19: 302 | B19: Каша рассыпчатая (гречневая) | C19: 180/5 | D19: 14.00 | E19: 8.70 | F19: 57.90 | G19: 372.00 | H19: 0.05 | K19: 1.71 | L19: 21.57 | N19: 204.08 | O19: 6.99
A20: 389 | B20: Сок фруктовый(яблочный) | C20: 200 | D20: 1.00 | F20: 20.20 | G20: 84.80 | I20: 6.00 | L20: 14.00 | N20: 8.00 | O20: 2.80
A21: 701 | B21: Хлеб ржано-пшеничный | C21: 40 | D21: 3.80 | E21: 0.45 | F21: 23.35 | G21: 114.60 | H21: 0.05 | L21: 9.30 | O21: 0.62
A22: 701 | B22: Хлеб пшеничный | C22: 40 | D22: 3.04 | E22: 0.36 | F22: 18.68 | G22: 85.44 | H22: 0.05 | L22: 9.30 | O22: 0.62
A23: ИТОГО: | C23: 815 | D23: =SUM(D16:D22) -> 33.52 | E23: =SUM(E16:E22) -> 31.63 | F23: =SUM(F16:F22) -> 141.91 | G23: 990.64 | H23: 0.15 | I23: 11.60 | K23: 1.71 | L23: 170.40 | N23: 230.08 | O23: 12.33
A28: ИТОГО: | D28: =SUM(D25:D27) -> 0 | E28: =SUM(E25:E27) -> 0 | F28: =SUM(F25:F27) -> 0
A29: ИТОГО за день: | C29: 1345 | D29: =SUM(D8:D13)+SUM(D16:D22)+SUM(D25:D27) -> 51.31 | E29: 61.06 | F29: =SUM(F8:F13)+SUM(F16:F22)+SUM(F25:F27) -> 210.61 | G29: =SUM(G8:G13)+SUM(G16:G22)+SUM(G25:G27) -> 1,601.04 | H29: 0.26 | I29: 14.36 | J29: 58 | K29: 1.94 | L29: 461.81 | M29: 73.20 | N29: 297.44 | O29: 14.27
B31: Средние показания на день | F31: пищевые вещества | I31: энергет. ценн. ккал
F32: Б | G32: Ж | H32: У
B33: Потребность по СаН ПиН (60-70%) | F33: 46,2-53,9 | G33: 47,4-55,3 | H33: 201-234,5 | I33: 1410-1645
B34: По меню | F34: =D29 -> 51.31 | G34: =E29 -> 61.06 | H34: =F29 -> 210.61 | I34: =G29 -> 1601.04
B36: Рекомендуемые среднесуточные наборы пищевых продуктов, в том числе используемые для приготовления блюд и напитков, для обучающихся общеобразовательных учреждений
B37: Наименование продуктов | C37: Количество продуктов в зависимости от возраста обучающихся | G37: Средняя за 10 дней | J37: День: | K37: пятница
C38: в г, мл, брутто | E38: в г, мл, нетто | G38: в г, мл, брутто | H38: в г, мл, нетто | J38: Неделя: | K38: вторая
C39: 7-11 лет | E39: 7-11 лет | G39: 7-11 лет | H39: 7-11 лет | J39: Сезон: | K39: осенне-зимний
B40: Хлеб ржаной (ржано-пшеничный) | C40: 80 | E40: 80 | G40: 40.00 | H40: 40.00 | J40: Возрастная категория: | K40: 7-11 /12лет и старше
B41: Хлеб пшеничный | C41: 150 | E41: 150 | G41: 90.00 | H41: 90.00
B42: Мука пшеничная | C42: 15 | E42: 15 | G42: 35.70 | H42: 35.70
B43: Крупы, бобовые | C43: 45 | E43: 45 | G43: 31.00 | H43: 31.00
B44: Макаронные изделия | C44: 15 | E44: 15 | G44: 10.00 | H44: 10.00
B45: Картофель | C45: 250 <*> | E45: 188 | G45: =28.9+53.4+171 -> 253.30 | H45: =21+40+129 -> 190.00
B46: Овощи свежие, зелень | C46: 350 | E46: 280 <**> | G46: =19.1+12.6+18.8+21.4+18.8+10+9.6+2+5+3 -> 120.30 | H46: =15+10+7.5+15+15+8+8+4+4+2 -> 88.50
B47: Фрукты (плоды) свежие | C47: 200 | E47: 185 <**> | G47: 100.00 | H47: 100.00
B48: Фрукты (плоды) сухие, в т.ч. шиповник | C48: 15 | E48: 15 | G48: 20.10 | H48: 20.10
B49: Соки плодоовощные, напитки витаминизированные, в т.ч. инстантные | C49: 200 | E49: 200
B50: Мясо жилованное (мясо на кости) 1 кат. | C50: 77 (95) | E50: 70
B51: Цыплята 1 категории потрошеные (куры 1 кат. п/п) | C51: 40 (51) | E51: 35 | G51: =142+40 -> 182.00 | H51: =128+25 -> 153.00
B52: Рыба-филе | C52: 60 | E52: 58
B53: Колбасные изделия | C53: 15 | E53: 14.7
B54: Молоко (массовая доля жира 2,5%, 3,2%) | C54: 300 | E54: 300 | G54: =211+24+100+100 -> 435.00 | H54: =22.5+200+200+24 -> 446.50
B55: Кисломолочные продукты (массовая доля жира 2,5%, 3,2%) | C55: 150 | E55: 150
B56: Творог (массовая доля жира не более 9%) | C56: 50 | E56: 50
B57: Сыр | C57: 10 | E57: 9.8
B58: Сметана (массовая доля жира не более 15%) | C58: 10 | E58: 10
B59: Масло сливочное | C59: 30 | E59: 30 | G59: =0.5+5.25+10+10 -> 25.75 | H59: 25.75
B60: Масло растительное | C60: 15 | E60: 15 | G60: 10.00 | H60: 10.00
B61: Яйцо диетическое | C61: 1 шт. | E61: 40 | G61: 2.10 | H61: 2.10
B62: Сахар <***> | C62: 40 | E62: 40 | G62: =46.36 -> 46.36 | H62: 46.36
B63: Кондитерские изделия | C63: 10 | E63: 10
B64: Чай | C64: 0.4 | E64: 0.4
B65: Какао | C65: 1.2 | E65: 1.2 | G65: 4.00 | H65: 4.00
B66: Дрожжи хлебопекарные | C66: 1 | E66: 1 | G66: 0.10 | H66: 0.10
B67: Соль | C67: 5 | E67: 5 | G67: 3.00 | H67: 3.00

Sheet свод 10 дней
A1: Рекомендуемые среднесуточные наборы пищевых продуктов, в том числе используемые для приготовления блюд и напитков, для обучающихся общеобразовательных учреждений
A2: Наименование продуктов | B2: Количество продуктов в зависимости от возраста обучающихся | F2: Средняя за 10 дней
B3: в г, мл, брутто | D3: в г, мл, нетто | F3: в г, мл, брутто | G3: в г, мл, нетто
B4: 7-11 лет | D4: 7-11 лет | F4: 7-11 лет | G4: 7-11 лет
A5: Хлеб ржаной (ржано-пшеничный) | B5: 80 | D5: 80 | F5: 40.00 | G5: 40.00
A6: Хлеб пшеничный | B6: 150 | D6: 150 | F6: =(70+100+103+78+90+90+70+90+118)/10 -> 80.90 | G6: =(70+100+103+78+90+90+70+90+118)/10 -> 80.90
A7: Мука пшеничная | B7: 15 | D7: 15 | F7: =(2+89.5+15.6+44.79+9.55+35.71+20.5+18.25+9.6)/10 -> 24.55 | G7: 24.55
A8: Крупы, бобовые | B8: 45 | D8: 45 | F8: =(31+33+75+44+54+52+75+49)/10 -> 41.30 | G8: 41.30
A9: Макаронные изделия | B9: 15 | D9: 15 | F9: =(52.5+10+10+52.5+10)/10 -> 13.50 | G9: 13.50
A10: Картофель | B10: 250 <*> | D10: 188 | F10: =(253.3+33.25+27+40+82.3+238+40+53.4+226.9+100)/10 -> 109.42 | G10: =(75+170+40+30+179+82.3+30+20+25+190)/10 -> 84.13
A11: Овощи свежие, зелень | B11: 350 | D11: 280 <**> | F11: =(120.3+303.6+221.35+227.85+124.3+138.85+207.85+272.2+249.95+121.05)/10 -> 198.73 | G11: =(69.75+200+218.5+162+111.4+119+121.5+178.9+243.5+88.5)/10 -> 151.31
A12: Фрукты (плоды) свежие | B12: 200 | D12: 185 <**> | F12: =(100+135.7+100+135+145.4+134+135.7+135+129+135.7)/10 -> 128.55 | G12: =(125+129+128+135.7+130+145.4+128.2+100+125+100)/10 -> 124.63
A13: Фрукты (плоды) сухие, в т.ч. шиповник | B13: 15 | D13: 15 | F13: =(20.1+5.1+25.6+25.6)/10 -> 7.64 | G13: =(37+10+10+37+5+20.1)/10 -> 11.91
A14: Соки плодоовощные, напитки витаминизированные, в т.ч. инстантные | B14: 200 | D14: 200 | F14: =(200+200+200+200+200)/10 -> 100.00 | G14: 100.00
A15: Мясо жилованное (мясо на кости) 1 кат. | B15: 77 (95) | D15: 70 | F15: =(92+40+121+150+121+40+150)/10 -> 71.40 | G15: =(106+25+96+106+96+25+63)/10 -> 51.70
A16: Цыплята 1 категории потрошеные (куры 1 кат. п/п) | B16: 40 (51) | D16: 35 | F16: =(182+40+125)/10 -> 34.70 | G16: =(60+25+153)/10 -> 23.80
A17: Рыба-филе | B17: 60 | D17: 58 | F17: =(90+246+123)/10 -> 45.90 | G17: =(61+124+66)/10 -> 25.10
A18: Колбасные изделия | B18: 15 | D18: 14.7 | F18: 0.00 | G18: 0.00
A19: Молоко (массовая доля жира 2,5%, 3,2%) | B19: 300 | D19: 300 | F19: =(435+176+411+100+411+150+125.92+162+102+411)/10 -> 248.39 | G19: =(400+100.5+162+125.92+150+400+100+400+176+446.5)/10 -> 246.09
A20: Кисломолочные продукты (массовая доля жира 2,5%, 3,2%) | B20: 150 | D20: 150 | F20: =(206+237+206+207+206+207)/10 -> 126.90 | G20: =(200+200+200+200+230+200)/10 -> 123.00
A21: Творог (массовая доля жира не более 9%) | B21: 50 | D21: 50 | F21: =(83.7+113.7)/10 -> 19.74 | G21: =(112+82)/10 -> 19.40
A22: Сыр | B22: 10 | D22: 9.8 | F22: =(16+16+16)/10 -> 4.80 | G22: =(15+15+15)/10 -> 4.50
A23: Сметана (массовая доля жира не более 15%) | B23: 10 | D23: 10 | F23: =(12.5+12.5+12.5+22)/10 -> 5.95 | G23: 5.95
A24: Масло сливочное | B24: 30 | D24: 30 | F24: =(25.75+20+28.9+30+20.3+40.75+39.12+31.6+15.25+19.5)/10 -> 27.12 | G24: 27.12
A25: Масло растительное | B25: 15 | D25: 15 | F25: =(10+24+14.15+5+12.32+15.7+15+17+27+10)/10 -> 15.02 | G25: 15.02
A26: Яйцо диетическое | B26: 1 шт. | D26: 40 | F26: =(2.1+3+40+1.6+80.1+40+81.4+9.9+2.1)/10 -> 26.02 | G26: =26.02 -> 26.02
A27: Сахар <***> | B27: 40 | D27: 40 | F27: =(26+10.75+32.15+32.7+36.6+24.35+54.3+39.5+30+46.36+6)/10 -> 33.87 | G27: 33.87
A28: Кондитерские изделия | B28: 10 | D28: 10 | F28: =(20+20+20+15)/10 -> 7.50 | G28: 7.50
A29: Чай | B29: 0.4 | D29: 0.4 | F29: =(0.5+0.5+0.5+0.5)/10 -> 0.20 | G29: 0.20
A30: Какао | B30: 1.2 | D30: 1.2 | F30: =(4+4)/10 -> 0.80 | G30: 0.80
A31: Дрожжи хлебопекарные | B31: 1 | D31: 1 | F31: =(0.1+0.56+0.5+0.1+0.1+2.25)/10 -> 0.36 | G31: 0.36
A32: Соль | B32: 5 | D32: 5 | F32: =(3.3+3.1+3+3.03+3.2+3.8+3.56+3+3+5)/10 -> 3.40 | G32: 3.40
A34: Средние показания на день | E34: пищевые вещества | H34: энергет. ценн. ккал
E35: Б | F35: Ж | G35: У
A36: Потребность по СаН ПиН (60-70%) | E36: 46,2-53,9 | F36: 47,4-55,3 | G36: 201-234,5 | H36: 1410-1645
A37: По меню среднее за 10 дней | E37: =(58.91+61.65+54.83+57.92+52.03+59.4+59.44+72.27+47.3+60.35)/10 -> 58.41 | F37: =(58.73+54.74+80.65+59.08+56.01+67.37+63.16+63.03+47.78+71.64)/10 -> 62.22 | G37: =(239.73+241.82+191.79+259+215.93+215.28+235.41+234.37+217.14+224.3)/10 -> 227.48 | H37: =(1738.9+1754.78+1715.58+1832.8+1561.06+1704.48+1764.3+1811.58+1514.93+1825.63)/10 -> 1722.40
